[Event "Titled Tuesday Blitz June 8 2021"]
[White "Kovalev, Vladislav"]
[Black "Maximov, Dmitry"]
[WhiteFideId "13504398"]
[BlackFideId "14105659"]
[WhiteElo "2573"]
[BlackElo "2494"]
[Result "1-0"]
[Round "03"]
[TimeControl "180+1"]
[Date "2021.06.08"]
[WhiteClock "0:00:47"]
[BlackClock "0:00:09"]

1. e4 {[%clk 0:03:00]}  c5 {[%clk 0:02:59]} 2. Be2 {[%clk 0:03:00]}  g6 {[%clk 0:02:57]} 3. d3 {[%clk 0:03:01]}  Bg7 {[%clk 0:02:56]} 4. f4 {[%clk 0:03:02]}  d5 {[%clk 0:02:51]} 5. c3 {[%clk 0:02:59]}  Nc6 {[%clk 0:02:34]} 6. Nf3 {[%clk 0:02:59]}  dxe4 {[%clk 0:02:31]} 7. dxe4 {[%clk 0:02:59]}  Qxd1+ {[%clk 0:02:31]} 8. Bxd1 {[%clk 0:03:00]}  Nf6 {[%clk 0:02:32]} 9. Bc2 {[%clk 0:02:57]}  O-O {[%clk 0:02:29]} 10. Be3 {[%clk 0:02:55]}  b6 {[%clk 0:02:28]} 11. Nbd2 {[%clk 0:02:56]}  Ba6 {[%clk 0:02:24]} 12. O-O-O {[%clk 0:02:51]}  Rfd8 {[%clk 0:02:22]} 13. h3 {[%clk 0:02:45]}  h5 {[%clk 0:02:11]} 14. Ng5 {[%clk 0:02:33]}  Be2 {[%clk 0:01:48]} 15. Rde1 {[%clk 0:02:32]}  Bd3 {[%clk 0:01:49]} 16. Bxd3 {[%clk 0:02:32]}  Rxd3 {[%clk 0:01:48]} 17. Kc2 {[%clk 0:02:25]}  Rad8 {[%clk 0:01:47]} 18. e5 {[%clk 0:02:18]}  Nh7 {[%clk 0:01:41]} 19. Nge4 {[%clk 0:02:09]}  Nf8 {[%clk 0:01:35]} 20. Nc4 {[%clk 0:02:06]}  R3d7 {[%clk 0:01:33]} 21. Ng5 {[%clk 0:02:01]}  b5 {[%clk 0:01:28]} 22. Na3 {[%clk 0:01:59]}  a6 {[%clk 0:01:23]} 23. Rd1 {[%clk 0:01:53]}  c4 {[%clk 0:01:17]} 24. Rxd7 {[%clk 0:01:52]}  Rxd7 {[%clk 0:01:17]} 25. Nb1 {[%clk 0:01:49]}  f6 {[%clk 0:01:15]} 26. exf6 {[%clk 0:01:48]}  exf6 {[%clk 0:01:15]} 27. Ne4 {[%clk 0:01:46]}  Re7 {[%clk 0:01:09]} 28. Nbd2 {[%clk 0:01:46]}  f5 {[%clk 0:01:09]} 29. Bc5 {[%clk 0:01:45]}  Rxe4 {[%clk 0:01:07]} 30. Nxe4 {[%clk 0:01:45]}  fxe4 {[%clk 0:01:08]} 31. Re1 {[%clk 0:01:41]}  Nd7 {[%clk 0:01:04]} 32. Bf2 {[%clk 0:01:31]}  Nf6 {[%clk 0:01:04]} 33. Bh4 {[%clk 0:01:32]}  Kf7 {[%clk 0:00:54]} 34. Bxf6 {[%clk 0:01:31]}  Bxf6 {[%clk 0:00:55]} 35. g4 {[%clk 0:01:30]}  hxg4 {[%clk 0:00:50]} 36. hxg4 {[%clk 0:01:31]}  Be7 {[%clk 0:00:41]} 37. Rxe4 {[%clk 0:01:31]}  Bd6 {[%clk 0:00:42]} 38. a4 {[%clk 0:01:27]}  Ne7 {[%clk 0:00:40]} 39. Kb1 {[%clk 0:01:04]}  Nd5 {[%clk 0:00:36]} 40. f5 {[%clk 0:01:03]}  gxf5 {[%clk 0:00:24]} 41. gxf5 {[%clk 0:01:04]}  Nf6 {[%clk 0:00:23]} 42. Re6 {[%clk 0:01:03]}  Ne8 {[%clk 0:00:19]} 43. a5 {[%clk 0:00:53]}  Bc5 {[%clk 0:00:10]} 44. Rxa6 {[%clk 0:00:52]}  Nd6 {[%clk 0:00:10]} 45. Rc6 {[%clk 0:00:50]}  Ne4 {[%clk 0:00:10]} 46. a6 {[%clk 0:00:48]}  Ke7 {[%clk 0:00:10]} 47. Rxc5 {[%clk 0:00:47]}  Nxc5 {[%clk 0:00:09]} 48. a7 {[%clk 0:00:47]} 1-0


[Site "https://www.chess.com"]

[Event "Titled Tuesday Blitz June 8 2021"]
[White "Kretov, Evgenij"]
[Black "Kamsky, Gata"]
[WhiteFideId "4167821"]
[BlackFideId "2000024"]
[WhiteElo "2400"]
[BlackElo "2644"]
[Result "0-1"]
[Round "03"]
[TimeControl "180+1"]
[Date "2021.06.08"]
[WhiteClock "0:00:13"]
[BlackClock "0:00:18"]

1. d4 {[%clk 0:03:00]}  Nf6 {[%clk 0:02:56]} 2. c4 {[%clk 0:03:01]}  e6 {[%clk 0:02:56]} 3. Nc3 {[%clk 0:03:01]}  Bb4 {[%clk 0:02:55]} 4. Bg5 {[%clk 0:03:01]}  h6 {[%clk 0:02:48]} 5. Bh4 {[%clk 0:03:01]}  b6 {[%clk 0:02:44]} 6. e3 {[%clk 0:02:56]}  Bb7 {[%clk 0:02:43]} 7. f3 {[%clk 0:02:56]}  c5 {[%clk 0:02:32]} 8. Ne2 {[%clk 0:02:54]}  cxd4 {[%clk 0:02:30]} 9. exd4 {[%clk 0:02:54]}  Be7 {[%clk 0:02:30]} 10. Qc2 {[%clk 0:02:44]}  Nc6 {[%clk 0:02:23]} 11. Bf2 {[%clk 0:02:41]}  d5 {[%clk 0:02:17]} 12. c5 {[%clk 0:01:53]}  O-O {[%clk 0:02:13]} 13. a3 {[%clk 0:01:43]}  bxc5 {[%clk 0:02:11]} 14. dxc5 {[%clk 0:01:43]}  a5 {[%clk 0:02:07]} 15. Rd1 {[%clk 0:01:40]}  e5 {[%clk 0:01:58]} 16. Ng3 {[%clk 0:01:35]}  d4 {[%clk 0:01:30]} 17. Na4 {[%clk 0:01:25]}  Nd5 {[%clk 0:01:19]} 18. Nf5 {[%clk 0:01:10]}  Bc8 {[%clk 0:00:43]} 19. Bb5 {[%clk 0:00:52]}  Bd7 {[%clk 0:00:40]} 20. Bc4 {[%clk 0:00:38]}  Be6 {[%clk 0:00:39]} 21. Nxe7+ {[%clk 0:00:28]}  Qxe7 {[%clk 0:00:37]} 22. O-O {[%clk 0:00:27]}  Rab8 {[%clk 0:00:37]} 23. Bxd5 {[%clk 0:00:27]}  Bxd5 {[%clk 0:00:37]} 24. Nb6 {[%clk 0:00:27]}  Qe6 {[%clk 0:00:36]} 25. Rd2 {[%clk 0:00:21]}  Bb3 {[%clk 0:00:36]} 26. Qc1 {[%clk 0:00:21]}  a4 {[%clk 0:00:36]} 27. Re1 {[%clk 0:00:21]}  Rbd8 {[%clk 0:00:35]} 28. Bg3 {[%clk 0:00:21]}  f6 {[%clk 0:00:34]} 29. Qb1 {[%clk 0:00:19]}  Kh8 {[%clk 0:00:32]} 30. Qe4 {[%clk 0:00:19]}  Rfe8 {[%clk 0:00:30]} 31. Qh4 {[%clk 0:00:18]}  Qf5 {[%clk 0:00:29]} 32. h3 {[%clk 0:00:18]}  Ne7 {[%clk 0:00:28]} 33. Qe4 {[%clk 0:00:16]}  Qxe4 {[%clk 0:00:25]} 34. fxe4 {[%clk 0:00:16]}  Nc6 {[%clk 0:00:24]} 35. Rc1 {[%clk 0:00:16]}  g6 {[%clk 0:00:23]} 36. Kf2 {[%clk 0:00:17]}  f5 {[%clk 0:00:23]} 37. exf5 {[%clk 0:00:17]}  gxf5 {[%clk 0:00:23]} 38. Bh4 {[%clk 0:00:17]}  Rb8 {[%clk 0:00:22]} 39. Bf6+ {[%clk 0:00:17]}  Kh7 {[%clk 0:00:22]} 40. Re1 {[%clk 0:00:15]}  Rb7 {[%clk 0:00:20]} 41. g4 {[%clk 0:00:14]}  f4 {[%clk 0:00:19]} 42. Kf3 {[%clk 0:00:13]}  Kg6 {[%clk 0:00:19]} 43. Bh4 {[%clk 0:00:13]}  Kf7 {[%clk 0:00:18]} 44. g5 {[%clk 0:00:13]}  hxg5 {[%clk 0:00:18]} 45. Bxg5 {[%clk 0:00:13]}  Kg6 {[%clk 0:00:18]} 46. h4 {[%clk 0:00:14]}  Kf5 {[%clk 0:00:18]} 47. h5 {[%clk 0:00:13]}  e4+ {[%clk 0:00:18]} 48. Kg2 {[%clk 0:00:13]}  Kxg5 {[%clk 0:00:18]} 0-1


[Site "https://www.chess.com"]

[Event "Titled Tuesday Blitz June 8 2021"]
[White "Perez Gormaz, Matias"]
[Black "Lazavik, Denis"]
[WhiteFideId "3406342"]
[BlackFideId "13515110"]
[WhiteElo "2414"]
[BlackElo "2436"]
[Result "0-1"]
[Round "03"]
[TimeControl "180+1"]
[Date "2021.06.08"]
[WhiteClock "0:00:03"]
[BlackClock "0:01:01"]

1. e4 {[%clk 0:03:00]}  e5 {[%clk 0:02:59]} 2. Nf3 {[%clk 0:03:00]}  Nc6 {[%clk 0:03:00]} 3. Bc4 {[%clk 0:03:00]}  Bc5 {[%clk 0:02:59]} 4. c3 {[%clk 0:03:00]}  Nf6 {[%clk 0:02:59]} 5. d3 {[%clk 0:03:01]}  d6 {[%clk 0:02:54]} 6. O-O {[%clk 0:02:59]}  h6 {[%clk 0:02:53]} 7. Re1 {[%clk 0:02:57]}  O-O {[%clk 0:02:52]} 8. Nbd2 {[%clk 0:02:55]}  a6 {[%clk 0:02:51]} 9. a4 {[%clk 0:02:54]}  Ba7 {[%clk 0:02:46]} 10. h3 {[%clk 0:02:54]}  Ne7 {[%clk 0:02:40]} 11. Bb3 {[%clk 0:02:49]}  Ng6 {[%clk 0:02:39]} 12. Nf1 {[%clk 0:02:50]}  Re8 {[%clk 0:02:36]} 13. Ng3 {[%clk 0:02:49]}  Be6 {[%clk 0:02:34]} 14. Bc2 {[%clk 0:02:50]}  d5 {[%clk 0:02:31]} 15. exd5 {[%clk 0:02:46]}  Bxd5 {[%clk 0:02:30]} 16. Be3 {[%clk 0:02:26]}  Bxe3 {[%clk 0:02:17]} 17. Rxe3 {[%clk 0:02:27]}  Qd7 {[%clk 0:01:51]} 18. Qd2 {[%clk 0:02:20]}  Re7 {[%clk 0:01:48]} 19. Rae1 {[%clk 0:02:13]}  Rae8 {[%clk 0:01:47]} 20. a5 {[%clk 0:01:59]}  Bc6 {[%clk 0:01:45]} 21. b4 {[%clk 0:01:42]}  Nd5 {[%clk 0:01:42]} 22. Re4 {[%clk 0:01:38]}  Ndf4 {[%clk 0:01:34]} 23. Qe3 {[%clk 0:01:10]}  Bxe4 {[%clk 0:01:30]} 24. Qxe4 {[%clk 0:01:08]}  Qd5 {[%clk 0:01:24]} 25. c4 {[%clk 0:00:18]}  Qxe4 {[%clk 0:01:22]} 26. Nxe4 {[%clk 0:00:18]}  Ne6 {[%clk 0:01:20]} 27. g3 {[%clk 0:00:13]}  Rd8 {[%clk 0:01:18]} 28. Nc3 {[%clk 0:00:10]}  c6 {[%clk 0:01:16]} 29. Bb1 {[%clk 0:00:08]}  Nd4 {[%clk 0:01:14]} 30. Kg2 {[%clk 0:00:07]}  Nxf3 {[%clk 0:01:14]} 31. Kxf3 {[%clk 0:00:07]}  Nf8 {[%clk 0:01:06]} 32. Na4 {[%clk 0:00:04]}  Ne6 {[%clk 0:01:05]} 33. Kg2 {[%clk 0:00:04]}  Nd4 {[%clk 0:01:04]} 34. Nc5 {[%clk 0:00:04]}  f6 {[%clk 0:01:04]} 35. f4 {[%clk 0:00:04]}  Rde8 {[%clk 0:00:58]} 36. fxe5 {[%clk 0:00:03]}  Rxe5 {[%clk 0:00:58]} 37. Rxe5 {[%clk 0:00:02]}  Rxe5 {[%clk 0:00:59]} 38. Nxb7 {[%clk 0:00:02]}  Re2+ {[%clk 0:01:00]} 39. Kf1 {[%clk 0:00:03]}  Rb2 {[%clk 0:01:01]} 0-1


[Site "https://www.chess.com"]

[Event "Titled Tuesday Blitz June 8 2021"]
[White "Perez Ponsa, Federico"]
[Black "Leiva, Gianmarco"]
[WhiteFideId "117927"]
[BlackFideId "3804399"]
[WhiteElo "2672"]
[BlackElo "2365"]
[Result "1-0"]
[Round "03"]
[TimeControl "180+1"]
[Date "2021.06.08"]
[WhiteClock "0:00:04"]
[BlackClock "0:00:03"]

1. e4 {[%clk 0:02:59]}  c6 {[%clk 0:03:00]} 2. d4 {[%clk 0:02:59]}  d5 {[%clk 0:03:00]} 3. exd5 {[%clk 0:03:00]}  cxd5 {[%clk 0:03:01]} 4. Bd3 {[%clk 0:03:00]}  Nc6 {[%clk 0:03:01]} 5. c3 {[%clk 0:03:01]}  Qc7 {[%clk 0:02:57]} 6. h3 {[%clk 0:03:00]}  g6 {[%clk 0:02:57]} 7. Nf3 {[%clk 0:03:00]}  Bf5 {[%clk 0:02:56]} 8. Be2 {[%clk 0:02:59]}  Nf6 {[%clk 0:02:55]} 9. O-O {[%clk 0:03:00]}  h6 {[%clk 0:02:53]} 10. Na3 {[%clk 0:02:58]}  g5 {[%clk 0:02:52]} 11. Nc2 {[%clk 0:02:47]}  e6 {[%clk 0:02:51]} 12. Ne3 {[%clk 0:02:43]}  Bg6 {[%clk 0:02:50]} 13. c4 {[%clk 0:02:38]}  Rd8 {[%clk 0:02:42]} 14. cxd5 {[%clk 0:02:33]}  Nxd5 {[%clk 0:02:41]} 15. Nxd5 {[%clk 0:02:31]}  Rxd5 {[%clk 0:02:28]} 16. Bc4 {[%clk 0:02:26]}  Rd8 {[%clk 0:02:28]} 17. Re1 {[%clk 0:02:22]}  Bb4 {[%clk 0:02:27]} 18. Bd2 {[%clk 0:02:18]}  O-O {[%clk 0:02:25]} 19. Bxb4 {[%clk 0:02:13]}  Nxb4 {[%clk 0:02:25]} 20. Rc1 {[%clk 0:02:13]}  Qb6 {[%clk 0:01:38]} 21. Qd2 {[%clk 0:01:53]}  Nc6 {[%clk 0:01:33]} 22. Red1 {[%clk 0:01:49]}  Rd6 {[%clk 0:01:24]} 23. d5 {[%clk 0:01:15]}  exd5 {[%clk 0:01:16]} 24. Bb3 {[%clk 0:01:14]}  d4 {[%clk 0:01:14]} 25. h4 {[%clk 0:01:11]}  Bh5 {[%clk 0:01:02]} 26. hxg5 {[%clk 0:00:56]}  Bxf3 {[%clk 0:01:03]} 27. gxf3 {[%clk 0:00:57]}  Kg7 {[%clk 0:00:51]} 28. f4 {[%clk 0:00:47]}  Rg6 {[%clk 0:00:43]} 29. Bc2 {[%clk 0:00:37]}  Re6 {[%clk 0:00:39]} 30. f5 {[%clk 0:00:34]}  Re5 {[%clk 0:00:39]} 31. gxh6+ {[%clk 0:00:31]}  Kh8 {[%clk 0:00:39]} 32. Qf4 {[%clk 0:00:22]}  Qd8 {[%clk 0:00:38]} 33. Kh2 {[%clk 0:00:20]}  Qf6 {[%clk 0:00:32]} 34. Rg1 {[%clk 0:00:20]}  Re2 {[%clk 0:00:31]} 35. Bd3 {[%clk 0:00:18]}  Rxb2 {[%clk 0:00:31]} 36. Rg2 {[%clk 0:00:17]}  Ne5 {[%clk 0:00:30]} 37. Be4 {[%clk 0:00:17]}  d3 {[%clk 0:00:19]} 38. Kg1 {[%clk 0:00:17]}  d2 {[%clk 0:00:18]} 39. Rd1 {[%clk 0:00:17]}  Rd8 {[%clk 0:00:18]} 40. Qg3 {[%clk 0:00:16]}  Rb4 {[%clk 0:00:15]} 41. f3 {[%clk 0:00:05]}  Rc4 {[%clk 0:00:15]} 42. Qg7+ {[%clk 0:00:05]}  Qxg7 {[%clk 0:00:15]} 43. hxg7+ {[%clk 0:00:06]}  Kg8 {[%clk 0:00:15]} 44. f6 {[%clk 0:00:04]}  Rc1 {[%clk 0:00:14]} 45. Bc2 {[%clk 0:00:03]}  Nxf3+ {[%clk 0:00:11]} 46. Kf2 {[%clk 0:00:03]}  Rxd1 {[%clk 0:00:04]} 47. Bxd1 {[%clk 0:00:04]}  Nh4 {[%clk 0:00:04]} 48. Rh2 {[%clk 0:00:03]}  Ng6 {[%clk 0:00:04]} 49. Ke2 {[%clk 0:00:03]}  Rd6 {[%clk 0:00:04]} 50. Rf2 {[%clk 0:00:02]}  Ne5 {[%clk 0:00:03]} 51. Rh2 {[%clk 0:00:02]}  Ng6 {[%clk 0:00:03]} 52. Rf2 {[%clk 0:00:02]}  Ne5 {[%clk 0:00:03]} 53. Bc2 {[%clk 0:00:03]}  Ng4 {[%clk 0:00:02]} 54. Rg2 {[%clk 0:00:02]}  Nxf6 {[%clk 0:00:03]} 55. Kd1 {[%clk 0:00:02]}  Ne8 {[%clk 0:00:02]} 56. Bh7+ {[%clk 0:00:02]}  Kxh7 {[%clk 0:00:02]} 57. g8=Q+ {[%clk 0:00:03]}  Kh6 {[%clk 0:00:03]} 58. Qh8# {[%clk 0:00:04]} 1-0


[Site "https://www.chess.com"]

[Event "Titled Tuesday Blitz June 8 2021"]
[White "Popilski, Gil"]
[Black "Grandelius, Nils"]
[WhiteFideId "2809060"]
[BlackFideId "1710400"]
[WhiteElo "2537"]
[BlackElo "2651"]
[Result "1/2-1/2"]
[Round "03"]
[TimeControl "180+1"]
[Date "2021.06.08"]
[WhiteClock "0:00:09"]
[BlackClock "0:00:17"]

1. e4 {[%clk 0:01:48]}  e5 {[%clk 0:02:58]} 2. Nf3 {[%clk 0:01:47]}  Nc6 {[%clk 0:02:58]} 3. Bb5 {[%clk 0:01:46]}  a6 {[%clk 0:02:59]} 4. Ba4 {[%clk 0:01:46]}  Nf6 {[%clk 0:02:59]} 5. O-O {[%clk 0:01:46]}  Bc5 {[%clk 0:02:59]} 6. c3 {[%clk 0:01:46]}  b5 {[%clk 0:02:59]} 7. Bc2 {[%clk 0:01:46]}  d5 {[%clk 0:02:59]} 8. d4 {[%clk 0:01:43]}  dxe4 {[%clk 0:02:52]} 9. dxc5 {[%clk 0:01:43]}  Qxd1 {[%clk 0:02:49]} 10. Bxd1 {[%clk 0:01:43]}  exf3 {[%clk 0:02:49]} 11. Bxf3 {[%clk 0:01:43]}  e4 {[%clk 0:02:48]} 12. Re1 {[%clk 0:01:43]}  O-O {[%clk 0:02:44]} 13. Bxe4 {[%clk 0:01:36]}  Re8 {[%clk 0:02:36]} 14. Nd2 {[%clk 0:01:35]}  Bf5 {[%clk 0:02:34]} 15. f3 {[%clk 0:01:33]}  Rad8 {[%clk 0:02:30]} 16. Kf2 {[%clk 0:01:32]}  Bxe4 {[%clk 0:02:23]} 17. Nxe4 {[%clk 0:01:32]}  Nxe4+ {[%clk 0:02:22]} 18. fxe4 {[%clk 0:01:31]}  Ne5 {[%clk 0:02:22]} 19. Kf1 {[%clk 0:01:29]}  Nd3 {[%clk 0:02:21]} 20. Re2 {[%clk 0:01:20]}  Nxc5 {[%clk 0:02:10]} 21. Bf4 {[%clk 0:01:20]}  c6 {[%clk 0:02:10]} 22. e5 {[%clk 0:01:09]}  Nd3 {[%clk 0:02:04]} 23. Bg3 {[%clk 0:01:08]}  c5 {[%clk 0:02:05]} 24. a4 {[%clk 0:01:07]}  b4 {[%clk 0:02:03]} 25. cxb4 {[%clk 0:01:05]}  cxb4 {[%clk 0:02:04]} 26. Rd1 {[%clk 0:01:00]}  Nc5 {[%clk 0:02:03]} 27. Rxd8 {[%clk 0:00:54]}  Rxd8 {[%clk 0:02:04]} 28. a5 {[%clk 0:00:54]}  b3 {[%clk 0:01:20]} 29. Re3 {[%clk 0:00:46]}  Rd2 {[%clk 0:01:12]} 30. e6 {[%clk 0:00:24]}  fxe6 {[%clk 0:01:07]} 31. Be5 {[%clk 0:00:23]}  Rc2 {[%clk 0:00:46]} 32. Bc3 {[%clk 0:00:14]}  Kf7 {[%clk 0:00:43]} 33. Rf3+ {[%clk 0:00:13]}  Ke7 {[%clk 0:00:37]} 34. Bxg7 {[%clk 0:00:12]}  Ne4 {[%clk 0:00:38]} 35. Ke1 {[%clk 0:00:10]}  Rxg2 {[%clk 0:00:37]} 36. Bh8 {[%clk 0:00:10]}  Rxh2 {[%clk 0:00:27]} 37. Rxb3 {[%clk 0:00:10]}  h5 {[%clk 0:00:23]} 38. Be5 {[%clk 0:00:09]}  Rc2 {[%clk 0:00:19]} 39. Rb7+ {[%clk 0:00:09]}  Ke8 {[%clk 0:00:19]} 40. Rb6 {[%clk 0:00:09]}  Ng5 {[%clk 0:00:19]} 41. Kf1 {[%clk 0:00:08]}  Kf7 {[%clk 0:00:18]} 42. Bc3 {[%clk 0:00:07]}  Ne4 {[%clk 0:00:17]} 43. Rxa6 {[%clk 0:00:07]}  Nxc3 {[%clk 0:00:18]} 44. bxc3 {[%clk 0:00:07]}  Rxc3 {[%clk 0:00:19]} 45. Ra8 {[%clk 0:00:08]}  Ra3 {[%clk 0:00:18]} 46. a6 {[%clk 0:00:09]}  Kg7 {[%clk 0:00:18]} 47. Ke2 {[%clk 0:00:09]}  h4 {[%clk 0:00:19]} 48. Kf2 {[%clk 0:00:09]}  h3 {[%clk 0:00:19]} 49. Kg1 {[%clk 0:00:09]}  Ra2 {[%clk 0:00:19]} 50. Kh1 {[%clk 0:00:09]}  e5 {[%clk 0:00:19]} 51. Kg1 {[%clk 0:00:09]}  e4 {[%clk 0:00:19]} 52. a7 {[%clk 0:00:09]}  e3 {[%clk 0:00:18]} 53. Re8 {[%clk 0:00:09]}  Rxa7 {[%clk 0:00:13]} 54. Rxe3 {[%clk 0:00:09]}  Ra6 {[%clk 0:00:14]} 55. Rg3+ {[%clk 0:00:08]}  Rg6 {[%clk 0:00:15]} 56. Rxg6+ {[%clk 0:00:08]}  Kxg6 {[%clk 0:00:16]} 57. Kh2 {[%clk 0:00:09]}  Kf6 {[%clk 0:00:17]} 58. Kxh3 {[%clk 0:00:09]} 1/2-1/2


[Site "https://www.chess.com"]

[Event "Titled Tuesday Blitz June 8 2021"]
[White "Rosen, Eric"]
[Black "Quparadze, Giga"]
[WhiteFideId "2032562"]
[BlackFideId "13602250"]
[WhiteElo "2362"]
[BlackElo "2658"]
[Result "0-1"]
[Round "03"]
[TimeControl "180+1"]
[Date "2021.06.08"]
[WhiteClock "0:00:01"]
[BlackClock "0:00:18"]

1. d4 {[%clk 0:03:00]}  Nf6 {[%clk 0:02:59]} 2. Bf4 {[%clk 0:03:01]}  e6 {[%clk 0:02:56]} 3. e3 {[%clk 0:03:00]}  c5 {[%clk 0:02:56]} 4. Nf3 {[%clk 0:03:01]}  b6 {[%clk 0:02:55]} 5. Nc3 {[%clk 0:02:55]}  Nh5 {[%clk 0:02:50]} 6. Bg5 {[%clk 0:02:48]}  Be7 {[%clk 0:02:49]} 7. Bxe7 {[%clk 0:02:47]}  Qxe7 {[%clk 0:02:50]} 8. d5 {[%clk 0:02:48]}  d6 {[%clk 0:02:47]} 9. Bb5+ {[%clk 0:02:41]}  Bd7 {[%clk 0:02:44]} 10. dxe6 {[%clk 0:02:38]}  fxe6 {[%clk 0:02:39]} 11. Ne5 {[%clk 0:02:20]}  Nf6 {[%clk 0:02:36]} 12. Qf3 {[%clk 0:02:12]}  d5 {[%clk 0:02:32]} 13. Bxd7+ {[%clk 0:01:25]}  Nbxd7 {[%clk 0:02:30]} 14. Nxd7 {[%clk 0:01:25]}  Qxd7 {[%clk 0:02:31]} 15. e4 {[%clk 0:01:17]}  O-O {[%clk 0:02:28]} 16. O-O {[%clk 0:01:07]}  Nxe4 {[%clk 0:02:26]} 17. Qh3 {[%clk 0:01:07]}  Nxc3 {[%clk 0:02:22]} 18. Qxc3 {[%clk 0:01:08]}  d4 {[%clk 0:02:22]} 19. Qd3 {[%clk 0:01:05]}  e5 {[%clk 0:02:21]} 20. Rae1 {[%clk 0:00:56]}  Rae8 {[%clk 0:02:21]} 21. Re4 {[%clk 0:00:53]}  Qf7 {[%clk 0:02:21]} 22. b3 {[%clk 0:00:49]}  Qd5 {[%clk 0:02:14]} 23. f3 {[%clk 0:00:47]}  Rc8 {[%clk 0:02:08]} 24. c4 {[%clk 0:00:45]}  Qd6 {[%clk 0:02:04]} 25. Rfe1 {[%clk 0:00:45]}  Rce8 {[%clk 0:02:01]} 26. Qe2 {[%clk 0:00:43]}  Qd7 {[%clk 0:01:47]} 27. Rxe5 {[%clk 0:00:40]}  d3 {[%clk 0:01:47]} 28. Qe4 {[%clk 0:00:31]}  d2 {[%clk 0:01:43]} 29. Rd1 {[%clk 0:00:30]}  Rxe5 {[%clk 0:01:35]} 30. Qxe5 {[%clk 0:00:30]}  Rd8 {[%clk 0:01:32]} 31. Qe3 {[%clk 0:00:25]}  h6 {[%clk 0:01:22]} 32. Kf2 {[%clk 0:00:25]}  Kh8 {[%clk 0:01:22]} 33. Qe4 {[%clk 0:00:17]}  Qd6 {[%clk 0:01:20]} 34. g3 {[%clk 0:00:12]}  Qf6 {[%clk 0:01:18]} 35. Qe3 {[%clk 0:00:09]}  Qb2 {[%clk 0:01:15]} 36. Qe7 {[%clk 0:00:09]}  Rg8 {[%clk 0:01:05]} 37. Qe3 {[%clk 0:00:09]}  Rd8 {[%clk 0:00:56]} 38. Qe7 {[%clk 0:00:09]}  Qd4+ {[%clk 0:00:56]} 39. Qe3 {[%clk 0:00:09]}  Qd7 {[%clk 0:00:56]} 40. Kg2 {[%clk 0:00:07]}  a6 {[%clk 0:00:55]} 41. a4 {[%clk 0:00:06]}  Qd6 {[%clk 0:00:51]} 42. Qe4 {[%clk 0:00:05]}  Qf6 {[%clk 0:00:49]} 43. Qe3 {[%clk 0:00:05]}  Qb2 {[%clk 0:00:48]} 44. Qe7 {[%clk 0:00:04]}  Qd4 {[%clk 0:00:40]} 45. Qe4 {[%clk 0:00:03]}  Qc3 {[%clk 0:00:39]} 46. Qe7 {[%clk 0:00:03]}  Qd3 {[%clk 0:00:38]} 47. Qe4 {[%clk 0:00:02]}  Qxb3 {[%clk 0:00:30]} 48. Qe2 {[%clk 0:00:03]}  Qc3 {[%clk 0:00:27]} 49. Kf2 {[%clk 0:00:03]}  Qd4+ {[%clk 0:00:25]} 50. Qe3 {[%clk 0:00:03]}  Qb2 {[%clk 0:00:19]} 51. Qe7 {[%clk 0:00:02]}  Qd4+ {[%clk 0:00:18]} 52. Qe3 {[%clk 0:00:02]}  Qd7 {[%clk 0:00:18]} 53. g4 {[%clk 0:00:01]}  Qxa4 {[%clk 0:00:18]} 0-1


[Site "https://www.chess.com"]

[Event "Titled Tuesday Blitz June 8 2021"]
[White "Shkapenko, Pavel"]
[Black "Yilmaz, Mustafa"]
[WhiteFideId "4151933"]
[BlackFideId "6302718"]
[WhiteElo "2386"]
[BlackElo "2518"]
[Result "0-1"]
[Round "03"]
[TimeControl "180+1"]
[Date "2021.06.08"]
[WhiteClock "0:01:04"]
[BlackClock "0:00:10"]

1. e4 {[%clk 0:03:00]}  c5 {[%clk 0:02:58]} 2. c3 {[%clk 0:03:01]}  Nf6 {[%clk 0:02:57]} 3. e5 {[%clk 0:03:00]}  Nd5 {[%clk 0:02:57]} 4. d4 {[%clk 0:03:01]}  cxd4 {[%clk 0:02:57]} 5. cxd4 {[%clk 0:03:02]}  d6 {[%clk 0:02:56]} 6. Nf3 {[%clk 0:03:01]}  Nc6 {[%clk 0:02:56]} 7. Bc4 {[%clk 0:02:56]}  Nb6 {[%clk 0:02:55]} 8. Bb3 {[%clk 0:02:56]}  dxe5 {[%clk 0:02:46]} 9. d5 {[%clk 0:02:54]}  Na5 {[%clk 0:02:46]} 10. Nc3 {[%clk 0:02:54]}  Nxb3 {[%clk 0:02:40]} 11. Qxb3 {[%clk 0:02:51]}  e6 {[%clk 0:02:38]} 12. Nxe5 {[%clk 0:02:50]}  Be7 {[%clk 0:02:34]} 13. Qb5+ {[%clk 0:02:47]}  Kf8 {[%clk 0:02:34]} 14. dxe6 {[%clk 0:02:45]}  Bxe6 {[%clk 0:02:33]} 15. Qe2 {[%clk 0:02:33]}  Qc8 {[%clk 0:01:54]} 16. O-O {[%clk 0:02:24]}  f6 {[%clk 0:01:54]} 17. Nd3 {[%clk 0:02:24]}  Bg4 {[%clk 0:01:46]} 18. f3 {[%clk 0:02:22]}  Bf5 {[%clk 0:01:46]} 19. Re1 {[%clk 0:02:21]}  Qd7 {[%clk 0:01:42]} 20. Nf4 {[%clk 0:02:17]}  Re8 {[%clk 0:01:39]} 21. Kh1 {[%clk 0:02:08]}  Bd6 {[%clk 0:01:22]} 22. Qxe8+ {[%clk 0:02:05]}  Qxe8 {[%clk 0:01:23]} 23. Rxe8+ {[%clk 0:02:05]}  Kxe8 {[%clk 0:01:24]} 24. Be3 {[%clk 0:02:04]}  Kf7 {[%clk 0:01:18]} 25. Rd1 {[%clk 0:02:02]}  Nc4 {[%clk 0:01:13]} 26. Bc1 {[%clk 0:02:01]}  Bxf4 {[%clk 0:01:09]} 27. Bxf4 {[%clk 0:02:01]}  Nxb2 {[%clk 0:01:09]} 28. Rd5 {[%clk 0:01:59]}  Re8 {[%clk 0:00:45]} 29. h4 {[%clk 0:01:56]}  Bc8 {[%clk 0:00:40]} 30. Nb5 {[%clk 0:01:51]}  Nc4 {[%clk 0:00:34]} 31. Nxa7 {[%clk 0:01:48]}  Be6 {[%clk 0:00:33]} 32. Rc5 {[%clk 0:01:46]}  Nb6 {[%clk 0:00:19]} 33. Rc7+ {[%clk 0:01:44]}  Re7 {[%clk 0:00:19]} 34. Rxe7+ {[%clk 0:01:43]}  Kxe7 {[%clk 0:00:20]} 35. a3 {[%clk 0:01:42]}  Bd7 {[%clk 0:00:20]} 36. Be3 {[%clk 0:01:33]}  Na4 {[%clk 0:00:20]} 37. Kg1 {[%clk 0:01:31]}  Kd6 {[%clk 0:00:21]} 38. Kf2 {[%clk 0:01:31]}  Kc7 {[%clk 0:00:18]} 39. Bf4+ {[%clk 0:01:29]}  Kb6 {[%clk 0:00:16]} 40. Bb8 {[%clk 0:01:22]}  Ka6 {[%clk 0:00:14]} 41. Ke3 {[%clk 0:01:22]}  b6 {[%clk 0:00:14]} 42. Kf4 {[%clk 0:01:18]}  Kb7 {[%clk 0:00:14]} 43. Bd6 {[%clk 0:01:19]}  Kxa7 {[%clk 0:00:14]} 44. Bf8 {[%clk 0:01:19]}  g6 {[%clk 0:00:14]} 45. Be7 {[%clk 0:01:17]}  Nc3 {[%clk 0:00:13]} 46. Bxf6 {[%clk 0:01:16]}  Nd5+ {[%clk 0:00:12]} 47. Ke5 {[%clk 0:01:16]}  Nxf6 {[%clk 0:00:12]} 48. Kxf6 {[%clk 0:01:17]}  Bf5 {[%clk 0:00:11]} 49. g4 {[%clk 0:01:17]}  Bd3 {[%clk 0:00:11]} 50. Kg7 {[%clk 0:01:08]}  h5 {[%clk 0:00:10]} 51. Kh6 {[%clk 0:01:08]}  hxg4 {[%clk 0:00:08]} 52. fxg4 {[%clk 0:01:08]}  Ka6 {[%clk 0:00:09]} 53. h5 {[%clk 0:01:04]}  gxh5 {[%clk 0:00:10]} 54. gxh5 {[%clk 0:01:04]}  Ka5 {[%clk 0:00:10]} 0-1


[Site "https://www.chess.com"]